bitfinex/quotes_ETHUSD_20260130
["timestamp","ask_amount","ask_price","bid_price","bid_amount"]
[1769737942067,0.92478981,2736.2,2733.8,13.08502375]
[1769737942068,0.01110411,2735.8,2733.8,13.08502375]
[1769737942371,0.92480269,2736.2,2733.7,0.91451146]
[1769737942372,0.01110411,2736.2,2734.2,13.08502375]
[1769737942672,0.01110411,2735.7,2734.2,13.08502375]
[1769737942853,0.01110411,2736.0,2734.2,13.08502375]
[1769737943062,0.01110411,2735.4,2733.7,0.91451146]
[1769737943267,0.01110411,2735.0,2733.7,3.04607416]
[1769737943581,0.01110411,2735.4,2733.7,13.99953521]
[1769737943913,1.21169274,2736.3,2733.9,13.08502375]
[1769737944082,0.01110411,2736.6,2734.3,13.08502375]
[1769737944386,0.01110411,2736.6,2734.0,1.14798141]
[1769737944387,0.01110411,2736.0,2734.5,13.08502375]
[1769737944734,0.01110411,2736.4,2734.5,13.08502375]
[1769737944961,0.01110411,2736.4,2734.7,13.08502375]
[1769737945158,0.01110411,2736.2,2734.7,13.08502375]
[1769737946629,0.01110411,2736.2,2734.8,14.60500574]
[1769737947269,0.01110411,2736.0,2734.8,14.60500574]
[1769737947452,0.01110411,2736.2,2734.8,14.60500574]
[1769737947769,0.01110411,2736.2,2735.0,13.69086211]
[1769737948072,0.01110411,2736.0,2734.9,1.82615803]
[1769737948254,0.01110411,2736.0,2734.8,0.91414363]
[1769737948653,0.01110411,2736.0,2734.7,3.65657452]
[1769737948855,0.01110411,2736.0,2734.3,22.54645996]
[1769737948856,0.01110411,2735.4,2734.4,0.91627735]
[1769737949468,0.01110411,2735.0,2734.4,0.91627735]
[1769737950060,0.01110411,2735.2,2734.4,0.91627735]
[1769737950283,0.01110411,2734.8,2734.1,0.002]
[1769737950570,0.01110411,2735.7,2734.4,13.69086211]
[1769737950786,0.01110411,2735.3,2734.5,0.81424392]
[1769737951196,0.01110411,2735.1,2734.5,0.81424392]
[1769737951503,0.01110411,2734.5,2734.1,0.002]
[1769737951709,0.92509482,2735.3,2734.1,0.002]
[1769737951710,0.01110411,2735.0,2734.4,0.91427735]
[1769737951874,0.01110411,2735.7,2734.4,15.06227906]
[1769737952213,0.01110411,2735.3,2734.4,0.91427735]
[1769737952379,0.01110411,2734.7,2734.1,0.91636397]
[1769737952576,0.01110411,2734.9,2734.4,0.91427114]
[1769737952800,0.01110411,2735.0,2734.1,0.002]
[1769737953000,0.01110411,2734.8,2734.1,0.002]
[1769737953305,0.01110411,2734.8,2733.7,0.91451146]
[1769737953679,0.01110411,2735.0,2733.7,14.60537357]
[1769737953990,0.01110411,2734.6,2733.7,0.91451146]
[1769737954318,0.01110411,2734.8,2733.7,0.91451146]
[1769737954809,0.9249804,2735.7,2733.7,15.67547917]
[1769737955108,0.01110411,2735.2,2733.7,15.67547917]
[1769737955508,0.01110411,2734.8,2733.7,0.91451146]
[1769737956305,0.01110411,2735.4,2733.7,0.91451146]
[1769737956506,0.01110411,2735.1,2733.7,0.91451146]
[1769737956708,0.01110411,2735.1,2733.7,0.86451146]
[1769737956904,0.01110411,2735.1,2733.7,14.80241777]
[1769737957211,0.01110411,2735.7,2733.7,14.80241777]
[1769737957212,0.01110411,2735.5,2733.9,13.93990631]
[1769737957411,0.01210411,2735.5,2733.9,13.93990631]
[1769737957599,0.01110411,2735.3,2733.9,13.93990631]
[1769737958189,0.01210411,2735.5,2733.9,13.93990631]
[1769737958387,0.001,2735.5,2734.1,13.93790631]
[1769737958933,0.01110411,2735.4,2734.1,0.91437767]
[1769737959487,0.001,2735.5,2734.1,14.85228398]
[1769737959980,0.01110411,2737.1,2734.5,13.93790631]
[1769737960174,0.01110411,2736.9,2735.1,13.93790631]
[1769737960821,0.30371019,2737.2,2735.3,13.93790631]
[1769737961186,0.01110411,2736.7,2735.3,13.93790631]
[1769737961585,0.01110411,2737.0,2735.3,13.93790631]
[1769737961915,0.01110411,2737.0,2735.2,0.91400994]
[1769737961916,0.01110411,2736.2,2735.2,0.91400994]
[1769737962713,0.01110411,2736.0,2735.1,0.91402209]
[1769737962901,0.01110411,2735.8,2734.3,3.65714233]
[1769737963101,0.01110411,2736.2,2734.4,13.93790631]
[1769737963303,0.01110411,2735.9,2734.4,13.93790631]
[1769737963528,0.01110411,2736.2,2734.4,13.93790631]
[1769737963685,0.01110411,2736.0,2734.4,13.93790631]
[1769737963892,0.01110411,2736.0,2734.4,15.36826836]
[1769737964608,0.01110411,2736.0,2734.1,0.91437767]
[1769737964609,0.01110411,2735.7,2734.1,0.91437767]
[1769737964789,0.92487044,2736.0,2734.1,13.93790631]
[1769737964989,0.92478222,2736.2,2734.1,13.93790631]
[1769737965184,0.01110411,2736.0,2734.3,13.93790631]
[1769737965425,0.01110411,2735.9,2734.3,13.93790631]
[1769737965799,0.01110411,2735.5,2734.0,3.65760777]
[1769737965999,0.01110411,2735.5,2734.1,13.93790631]
[1769737966324,0.01110411,2735.6,2734.3,13.93790631]
[1769737966824,0.01110411,2735.2,2733.9,0.002]
[1769737967021,0.01110411,2734.8,2733.9,0.002]
[1769737967188,0.01110411,2735.2,2733.9,0.002]
[1769737967391,0.01110411,2735.0,2733.9,0.002]
[1769737968622,0.01110411,2734.8,2733.9,0.002]
[1769737968822,0.91400994,2735.3,2733.9,0.002]
[1769737969028,0.01110411,2734.8,2733.9,0.002]
[1769737969530,0.01110411,2734.6,2733.9,0.002]
[1769737969825,0.01110411,2734.7,2733.9,0.002]
[1769737969996,0.01110411,2735.6,2733.9,0.002]
[1769737969997,0.91384289,2735.7,2733.9,0.002]
[1769737970191,0.01110411,2735.4,2733.9,0.002]
[1769737970521,0.01110411,2735.0,2733.9,0.002]
[1769737970726,0.01110411,2734.8,2733.9,0.002]
[1769737970925,0.01110411,2734.6,2733.6,0.002]
[1769737971111,0.01110411,2734.6,2732.9,0.91475453]
[1769737971112,0.01110411,2733.7,2732.9,0.91475453]
[1769737971315,0.01110411,2734.6,2732.9,0.91475453]
[1769737971316,0.001,2735.8,2733.7,13.93790631]
[1769737971517,0.001,2735.8,2734.5,13.93790631]
[1769737971734,0.001,2735.8,2734.6,0.91106777]
[1769737972044,0.001,2735.8,2734.5,13.93790631]
[1769737972327,0.01110411,2735.5,2733.8,2.18792268]
[1769737972533,0.01110411,2734.6,2732.8,3.65911668]
[1769737972730,0.01110411,2734.4,2732.8,3.65911668]
[1769737972933,0.91431079,2734.3,2732.7,3.65911668]
[1769737973151,0.01110411,2733.7,2732.6,0.002]
[1769737973434,0.01110411,2733.5,2732.6,0.002]
[1769737973596,0.766,2733.6,2732.6,0.002]
[1769737973796,0.01110411,2733.9,2732.6,0.002]
[1769737974138,0.766,2733.9,2732.6,1.85344701]
[1769737974299,0.01110411,2733.8,2732.6,0.002]
[1769737974498,0.01110411,2733.6,2732.6,0.002]
[1769737974706,0.01110411,2733.4,2732.6,0.002]
[1769737974896,0.766,2733.4,2732.6,0.002]
[1769737975321,0.01110411,2733.5,2732.6,0.002]
[1769737975527,0.766,2733.7,2732.6,13.09977242]
[1769737975922,0.77710411,2733.8,2732.6,13.09977242]
[1769737976236,0.01110411,2734.2,2732.6,14.40974966]
[1769737976454,0.01110411,2734.3,2732.6,14.40974966]
[1769737976626,0.01110411,2734.5,2732.6,14.40974966]
[1769737976832,0.01110411,2734.5,2732.8,13.09777242]
[1769737977016,0.01110411,2734.3,2732.9,0.91477917]
[1769737977223,0.01110411,2734.1,2732.9,0.91477917]
[1769737977627,0.01110411,2733.9,2732.9,0.91477917]
[1769737978018,0.01110411,2733.9,2732.8,0.91478942]
[1769737978019,0.01110411,2733.5,2732.8,0.91478942]
[1769737978817,0.77710411,2733.7,2732.8,0.91478942]
[1769737979019,0.77710411,2734.1,2732.7,3.65936112]
[1769737979242,0.01110411,2733.7,2732.7,0.73206117]
[1769737979419,0.01110411,2733.7,2732.6,0.002]
[1769737979622,0.01110411,2733.9,2732.6,13.09977242]
[1769737979836,0.01110411,2733.5,2732.6,0.002]
[1769737980144,0.01110411,2733.7,2732.6,0.002]
[1769737980348,0.77710411,2733.7,2732.6,0.002]
[1769737980713,0.01110411,2733.5,2732.6,0.002]
[1769737981114,0.01110411,2733.5,2732.8,0.002]
[1769737981317,0.01110411,2733.3,2732.6,0.002]
[1769737981537,0.01110411,2732.9,2731.4,16.75886235]
[1769737981748,0.01110411,2732.9,2730.4,0.0195836]
[1769737981749,0.01110411,2732.0,2731.5,0.002]
[1769737981953,0.01110411,2732.0,2730.5,3.66226384]
[1769737981954,0.01110411,2731.8,2730.5,0.91558322]
[1769737982282,0.01110411,2732.7,2730.5,0.91558322]
[1769737982283,0.01110411,2732.8,2730.5,14.52643447]
[1769737982553,0.01110411,2732.2,2730.7,13.09777242]
[1769737982912,0.01110411,2732.9,2730.7,13.09777242]
[1769737983219,0.01110411,2732.5,2731.1,0.91538208]
[1769737983420,0.01110411,2732.1,2731.0,0.91539537]
[1769737983661,0.766,2732.2,2731.0,14.47087357]
[1769737983865,0.01110411,2732.7,2731.0,14.47087357]
[1769737983866,0.01110411,2732.4,2731.0,14.47087357]
[1769737984012,0.01110411,2732.8,2731.1,13.09777242]
[1769737984345,0.01110411,2732.6,2731.1,13.09777242]
[1769737984517,0.01110411,2732.6,2731.0,1.37310115]
[1769737984518,0.01110411,2732.2,2731.0,1.37310115]
[1769737984717,0.01110411,2731.9,2731.0,0.91539537]
[1769737984917,0.767,2732.3,2731.0,0.91539537]
[1769737985113,0.01110411,2732.4,2730.9,16.75943481]
[1769737985315,0.01110411,2732.0,2731.0,2.04210972]
[1769737985519,0.01110411,2732.6,2731.0,2.04210972]
[1769737985520,0.01110411,2733.1,2731.1,13.09777242]
[1769737985714,0.01110411,2733.2,2731.6,13.09777242]
[1769737986025,0.01110411,2733.7,2731.7,0.73786202]
[1769737986339,0.01110411,2734.1,2732.1,13.09777242]
[1769737986542,0.01110411,2733.9,2732.1,13.09777242]
[1769737986918,0.01110411,2733.7,2732.1,13.09777242]
[1769737987251,0.01110411,2733.7,2731.5,0.82661457]
[1769737987252,0.01110411,2734.0,2732.7,14.01261854]
[1769737987647,7.51286291,2734.6,2732.7,14.01261854]
[1769737987648,0.01110411,2735.0,2733.2,13.09777242]
[1769737987860,0.01110411,2735.0,2733.4,13.09777242]
[1769737988335,0.01110411,2734.8,2733.4,13.09777242]
[1769737988874,0.01110411,2734.2,2732.7,14.01261854]
[1769737989166,0.01110411,2734.2,2732.6,3.65938449]
[1769737989167,0.01110411,2734.5,2733.4,0.91461183]
[1769737989327,0.01110411,2734.3,2733.4,0.91461183]
[1769737989932,0.01110411,2735.2,2733.4,14.01238425]
[1769737990167,0.01110411,2734.5,2733.4,14.01238425]
[1769737990371,0.01110411,2734.7,2733.4,14.01238425]
[1769737990593,0.01110411,2735.5,2733.4,14.01238425]
[1769737990594,0.001,2735.8,2734.6,13.09777242]
[1769737990891,0.01110411,2737.0,2734.8,13.09777242]
[1769737991032,0.01110411,2737.0,2734.5,7.93910775]
[1769737991033,0.30251293,2737.9,2735.8,13.09777242]
[1769737991236,0.30251293,2737.9,2736.5,14.01134815]
[1769737991474,3.65046627,2739.4,2736.5,14.01134815]
[1769737991475,3.65085756,2739.1,2736.7,13.09777242]
[1769737991666,0.01110411,2738.5,2737.0,13.09777242]
[1769737991873,0.01110411,2738.5,2736.5,0.91357573]
[1769737991874,0.01110411,2737.5,2736.5,0.91357573]
[1769737992073,0.01110411,2737.5,2736.3,13.09777242]
[1769737992074,0.01110411,2737.0,2735.7,11.59437446]
[1769737992230,0.01110411,2736.6,2735.5,27.59777242]
[1769737992435,0.01110411,2735.8,2734.1,13.09777242]
[1769737992636,0.01110411,2735.6,2734.1,13.09777242]
[1769737992865,0.01110411,2735.6,2735.1,2.66533715]
[1769737993068,0.01110411,2736.2,2735.1,2.66533715]
[1769737993234,0.92503427,2735.5,2734.6,0.91418502]
[1769737993438,0.01110411,2735.0,2734.2,0.91434423]
[1769737993744,0.01110411,2735.2,2734.2,0.91434423]
[1769737994081,7.27480945,2737.1,2734.2,0.91434423]
[1769737994286,0.01110411,2735.5,2734.2,0.91434423]
[1769737994436,0.01110411,2735.1,2734.2,0.91434423]
[1769737994784,0.01110411,2735.5,2734.2,0.91434423]
[1769737995000,0.01110411,2735.7,2734.4,13.09777242]
[1769737995278,0.01110411,2736.1,2734.5,0.91424392]
[1769737995482,0.01110411,2735.7,2734.5,14.01201634]
[1769737996082,0.01110411,2736.2,2734.5,14.01201634]
[1769737996289,0.01110411,2735.4,2734.4,0.914267]
[1769737996635,0.01110411,2735.4,2734.0,3.65758443]
[1769737996636,0.01110411,2735.0,2733.9,1.63030061]
[1769737996946,0.01110411,2735.0,2733.6,0.002]
[1769737996947,0.01110411,2734.6,2733.6,0.002]
[1769737997162,1.69126408,2734.8,2733.6,0.002]
[1769737997445,0.01110411,2734.5,2733.6,0.002]
[1769737997646,0.01110411,2734.8,2733.6,0.002]
[1769737997834,0.01110411,2734.8,2733.6,13.09977242]
[1769737998035,0.01110411,2735.4,2733.7,14.40774966]
[1769737998260,0.01110411,2735.0,2733.7,14.40774966]
[1769737998664,0.01110411,2735.8,2733.8,13.09777242]
[1769737998665,0.766,2735.5,2733.8,13.09777242]
[1769737998869,0.01110411,2735.8,2733.8,13.09777242]
[1769737999367,0.01110411,2736.4,2734.6,13.09777242]
[1769737999754,0.92473567,2736.4,2734.6,13.09777242]
[1769737999954,0.92473567,2736.4,2734.5,0.91424392]
[1769737999955,0.01110411,2735.5,2734.5,0.91424392]
[1769738000334,0.01110411,2736.0,2734.5,14.01201634]
[1769738000534,0.01110411,2736.2,2734.5,14.01201634]
[1769738000734,0.01110411,2736.5,2734.8,13.09777242]
[1769738000967,0.01110411,2736.1,2734.8,13.09777242]
[1769738001136,0.01110411,2736.5,2734.8,13.09777242]
[1769738001332,0.01110411,2736.3,2735.0,13.09777242]
[1769738001540,0.01110411,2736.1,2735.0,13.09777242]
[1769738002168,0.91346382,2736.9,2735.0,13.83874445]
[1769738002372,0.01110411,2737.0,2735.5,13.09777242]
[1769738002575,0.01110411,2737.0,2735.6,14.40774966]
[1769738002795,0.01110411,2737.1,2735.6,14.40774966]
[1769738002953,0.01110411,2736.9,2735.6,13.09777242]
[1769738003350,0.01110411,2736.9,2735.7,0.91384289]
[1769738003750,3.86710411,2738.0,2735.7,14.01161531]
[1769738004003,0.01110411,2737.4,2735.9,13.09777242]
[1769738004279,0.01110411,2736.8,2735.7,0.91384289]
[1769738004648,0.01110411,2737.2,2735.7,0.91384289]
[1769738004843,0.01110411,2737.0,2735.7,0.91384289]
[1769738005076,0.01110411,2736.8,2735.7,0.91384289]
[1769738005375,0.01110411,2737.0,2735.7,14.01161531]
[1769738005879,0.91341366,2737.0,2735.7,14.01161531]
[1769738006187,3.66281741,2738.5,2735.8,13.14303754]
[1769738006349,0.01110411,2737.6,2735.9,13.14303754]
[1769738006679,0.001,2737.1,2735.7,14.05688043]
[1769738006983,0.92204569,2738.3,2736.5,13.14303754]
[1769738007144,0.001,2738.6,2736.5,13.14303754]
[1769738007344,0.01210411,2739.8,2737.2,13.37660784]
[1769738007567,0.01110411,2739.3,2737.4,13.14303754]
[1769738007755,0.01110411,2739.1,2737.4,13.14303754]
[1769738007969,0.01110411,2739.3,2737.4,13.14303754]
[1769738008582,0.001,2739.8,2737.6,13.14303754]
[1769738008748,0.01110411,2739.7,2738.0,13.14303754]
[1769738009077,0.01110411,2739.3,2738.0,13.14303754]
[1769738009276,0.01110411,2739.3,2738.1,0.91304189]
[1769738009974,0.92368219,2739.5,2738.1,0.91304189]
[1769738009975,0.01110411,2739.5,2738.1,0.91304189]
[1769738010180,0.92365736,2739.6,2738.1,14.05607943]
[1769738010583,0.01110411,2739.4,2738.1,14.05607943]
[1769738010768,0.01210411,2739.8,2738.1,14.05607943]
[1769738010969,0.001,2739.8,2738.1,14.05607943]
[1769738011290,0.001,2740.8,2739.1,13.14303754]
[1769738011660,0.001,2740.8,2739.6,13.14303754]
[1769738011897,0.91169421,2742.2,2739.8,13.14303754]
[1769738012101,0.01110411,2742.0,2740.0,13.14303754]
[1769738012297,0.01110411,2742.1,2740.0,13.14303754]
[1769738012595,0.91151055,2742.7,2739.9,1.32454375]
[1769738012596,0.91129841,2743.4,2741.3,13.14303754]
[1769738012893,0.31940799,2745.8,2742.4,13.14303754]
[1769738013092,3.64232629,2745.5,2743.5,13.14303754]
[1769738013390,0.31940799,2745.8,2743.0,15.65292398]
[1769738013391,0.19037283,2744.8,2743.9,0.01110411]
[1769738013598,0.19037283,2744.8,2743.1,13.14303754]
[1769738013599,0.91081774,2744.8,2743.1,13.14303754]
[1769738013797,0.91081774,2744.8,2743.6,0.91121074]
[1769738013798,0.01110411,2744.5,2743.6,0.91121074]
[1769738013966,0.01110411,2744.5,2743.5,0.91122349]
[1769738014160,0.01110411,2744.5,2742.8,0.91145271]
[1769738014161,0.01110411,2744.3,2742.8,0.91145271]
[1769738014376,0.01110411,2743.9,2742.5,3.61859548]
[1769738014578,0.766,2744.6,2740.8,0.01110411]
[1769738014579,0.01110411,2743.5,2740.8,0.01110411]
[1769738014863,0.01110411,2742.3,2741.0,0.91207588]
[1769738015100,0.01110411,2742.6,2741.0,0.91207588]
[1769738015286,0.91164351,2742.3,2740.7,0.91217572]
[1769738015488,0.01110411,2742.8,2740.7,14.00198561]
[1769738015686,0.01110411,2742.8,2741.1,13.08980989]
[1769738015889,0.01110411,2743.0,2741.1,13.08980989]
[1769738016096,0.92239939,2743.4,2741.5,13.08980989]
[1769738016279,0.01110411,2743.0,2741.5,13.08980989]
[1769738016480,0.01110411,2742.6,2740.8,13.08980989]
[1769738016784,0.01110411,2742.1,2740.8,13.08980989]
[1769738016983,0.01110411,2743.0,2740.8,13.08980989]
[1769738016984,0.01110411,2742.7,2740.8,13.08980989]
[1769738017186,0.01110411,2743.3,2740.7,0.91217572]
[1769738017187,0.01110411,2743.3,2741.2,13.08980989]
[1769738017406,0.01110411,2742.8,2741.3,14.00178595]
[1769738017571,0.92258341,2742.8,2741.3,14.00178595]
[1769738017894,0.01110411,2743.0,2741.3,14.00178595]
[1769738018563,0.91135167,2743.2,2741.3,14.00178595]
[1769738018769,0.01110411,2744.0,2741.7,13.08980989]
[1769738018967,0.01110411,2745.6,2743.8,13.32338019]
[1769738019194,0.01110411,2745.6,2743.1,15.64181987]
[1769738019195,5.77457047,2745.3,2743.1,13.08980989]
[1769738019392,5.77457047,2745.3,2742.4,15.65292398]
[1769738019393,0.01110411,2743.2,2742.6,0.91154379]
[1769738019592,0.01110411,2743.3,2742.6,0.91154379]
[1769738019781,3.6430164,2745.0,2742.6,0.91154379]
[1769738019782,0.01110411,2743.4,2742.7,13.32338019]
[1769738019987,0.01110411,2743.0,2742.7,13.08980989]
[1769738020202,0.01110411,2743.1,2742.7,13.08980989]
[1769738020397,0.01110411,2743.4,2742.7,13.08980989]
[1769738020800,0.01110411,2744.6,2743.2,13.32338019]
[1769738020967,0.01110411,2744.8,2744.0,13.08980989]
[1769738021168,0.01110411,2744.1,2743.2,13.08980989]
[1769738021365,0.01110411,2743.5,2743.3,0.91131119]
[1769738021569,0.01110411,2743.5,2743.2,13.08980989]
[1769738021570,0.00905411,2743.5,2743.2,13.08980989]
[1769738021795,0.01110411,2746.3,2743.3,0.2335703]
[1769738021996,0.01110411,2744.1,2743.2,15.67466109]
[1769738022203,0.01110411,2746.3,2743.3,13.32338019]
[1769738022204,0.9104657,2745.9,2743.3,13.32338019]
[1769738022400,0.01110411,2744.5,2743.3,13.32338019]
[1769738022606,0.01110411,2744.4,2743.9,13.08980989]
[1769738022901,0.01110411,2744.3,2743.9,13.08980989]
[1769738023102,1e-08,2745.1,2743.9,13.08980989]
[1769738023404,0.01110411,2744.6,2744.0,0.91107871]
[1769738023579,0.01110411,2746.1,2744.0,0.91107871]
[1769738023580,0.01110411,2745.7,2744.4,13.08980989]
[1769738023779,0.01110411,2745.5,2744.4,13.08980989]
[1769738023979,0.01110411,2745.7,2744.1,27.92578019]
[1769738024181,0.01110411,2745.2,2744.5,0.2335703]
[1769738024382,0.01110411,2745.1,2744.4,13.08980989]
[1769738024691,0.01110411,2744.8,2744.4,13.08980989]
[1769738024867,0.01110411,2746.2,2744.8,13.08980989]
[1769738025072,0.01110411,2745.7,2744.8,13.08980989]
[1769738025323,0.01110411,2746.1,2745.0,0.91074681]
[1769738025522,0.01110411,2745.7,2745.0,0.91074681]
[1769738025724,0.01110411,2745.6,2745.0,0.91074681]
[1769738026023,0.01110411,2745.9,2745.0,0.91074681]
[1769738026187,0.01110411,2745.7,2745.0,0.91074681]
[1769738026393,0.01110411,2745.5,2745.0,0.91074681]
[1769738026703,0.01110411,2745.5,2744.7,0.91083276]
[1769738026704,0.01110411,2744.9,2744.7,0.91083276]
[1769738026891,0.01110411,2745.0,2743.6,15.4243125]
[1769738027092,0.01110411,2745.1,2744.2,0.91101231]
[1769738027323,0.01110411,2745.4,2744.2,0.91101231]
[1769738027503,0.01110411,2745.2,2744.0,3.64404926]
[1769738027702,0.01110411,2744.8,2743.9,3.64404926]
[1769738028008,0.01110411,2744.8,2743.8,3.64404926]
[1769738028009,0.01110411,2744.8,2743.7,0.91117833]
[1769738028190,0.01110411,2744.9,2743.7,0.91117833]
[1769738028391,0.01110411,2744.5,2743.7,0.91117833]
[1769738028739,0.01110411,2744.1,2743.6,0.91120704]
[1769738029051,0.01110411,2744.4,2743.6,0.91120704]
[1769738029227,0.01110411,2744.0,2743.3,3.64523179]
[1769738029390,0.01110411,2744.4,2743.3,0.91131119]
[1769738029586,0.01110411,2744.0,2743.3,0.91131119]
[1769738030017,0.01110411,2743.7,2743.2,1.16430212]
[1769738030407,0.01210411,2744.2,2743.2,1.16430212]
[1769738030612,0.01110411,2744.0,2743.2,1.16430212]
[1769738030807,0.01110411,2744.0,2742.7,13.08980989]
[1769738030808,0.01110411,2743.3,2742.1,3.64680168]
[1769738030989,0.01110411,2743.1,2742.1,0.91171]
[1769738031193,0.01110411,2743.2,2742.1,14.00151989]
[1769738031423,0.01110411,2743.4,2742.1,14.00151989]
[1769738031612,0.01110411,2743.6,2742.1,14.00151989]
[1769738031918,0.01110411,2743.5,2742.1,14.00151989]
[1769738032323,0.001,2744.2,2742.3,13.08980989]
[1769738032523,0.001,2744.2,2742.2,0.1024]
[1769738032524,0.01110411,2743.7,2742.2,0.1024]
[1769738032726,0.01110411,2743.5,2742.1,0.91171]
[1769738032938,0.01110411,2743.5,2742.1,28.50151989]
[1769738033143,0.01110411,2743.5,2742.1,14.00151989]
[1769738033437,0.01110411,2743.5,2742.1,0.1024]
[1769738033636,0.01110411,2744.1,2742.1,0.1024]
[1769738033637,0.01110411,2743.4,2742.1,0.1024]
[1769738033938,0.01110411,2743.6,2742.1,13.19220989]
[1769738034933,0.01110411,2743.3,2742.1,13.08980989]
[1769738035144,0.01110411,2743.6,2742.1,13.08980989]
[1769738035340,0.01110411,2743.2,2742.1,13.08980989]
[1769738035524,0.01110411,2743.4,2742.2,0.91167675]
[1769738035707,0.01110411,2743.2,2742.2,0.91167675]
[1769738036041,0.01110411,2743.0,2742.2,0.91167675]
[1769738036557,0.01110411,2743.1,2742.2,0.91167675]
[1769738036745,0.01110411,2742.4,2741.1,3.64814547]
[1769738037070,0.01110411,2742.4,2741.7,0.91182501]
[1769738037071,0.01110411,2742.2,2741.7,0.91182501]
[1769738037348,0.01110411,2743.1,2741.0,12.65726612]
[1769738037661,0.01110411,2742.7,2741.2,3.64794669]
[1769738037816,0.01110411,2743.1,2741.3,12.65726612]
[1769738038663,3.65605199,2743.6,2741.3,12.65726612]
[1769738038814,0.01110411,2742.6,2741.4,1.63052128]
[1769738039014,0.01110411,2742.6,2741.2,3.64794669]
[1769738039246,0.01110411,2743.0,2741.3,12.65726612]
[1769738039436,0.01110411,2743.0,2741.1,1.78397256]
[1769738039437,0.01110411,2742.5,2741.1,0.91204261]
[1769738039643,0.01110411,2742.3,2741.0,3.64817044]
[1769738039956,0.92262145,2742.7,2741.1,13.4122117]
[1769738040257,0.92262145,2742.7,2741.0,3.64817044]
[1769738040258,0.01110411,2742.1,2741.0,3.64817044]
[1769738040441,0.01110411,2743.0,2741.1,12.65726612]
[1769738040643,0.01110411,2742.6,2741.2,12.65726612]
[1769738041153,0.92246898,2743.2,2741.2,12.65726612]
[1769738041154,0.01110411,2742.7,2741.2,12.65726612]
[1769738041561,0.01110411,2744.5,2741.6,12.65726612]
[1769738041737,0.01110411,2744.5,2742.1,12.89083642]
[1769738042062,0.001,2744.2,2742.5,12.99323642]
[1769738042371,0.01110411,2745.8,2743.3,13.00434053]
[1769738042574,0.01110411,2745.2,2743.3,12.99323642]
[1769738042852,0.764,2745.7,2744.3,12.65726612]
[1769738042853,0.01110411,2745.7,2744.3,12.65726612]
[1769738043039,0.01110411,2745.3,2744.3,12.65726612]
[1769738043241,0.01110411,2745.5,2744.3,12.65726612]
[1769738043242,0.01110411,2746.3,2744.3,12.65726612]
[1769738043426,0.01110411,2745.9,2744.3,12.65726612]
[1769738043623,0.01110411,2746.6,2744.6,12.65726612]
[1769738043819,0.01110411,2746.6,2744.7,13.40889175]
[1769738043820,0.01110411,2746.0,2744.7,13.40889175]
[1769738044023,0.01110411,2745.8,2744.8,12.65726612]
[1769738044222,0.01110411,2746.1,2744.8,12.65726612]
[1769738045039,0.01110411,2746.0,2744.8,12.65726612]
[1769738045247,0.01110411,2745.5,2744.4,0.91094592]
[1769738045451,0.01110411,2746.1,2744.4,14.38806337]
[1769738045758,0.92149141,2746.1,2744.4,14.38806337]
[1769738045925,0.01110411,2746.1,2744.4,14.38806337]
[1769738046126,0.01110411,2746.2,2744.4,14.38806337]
[1769738046527,0.01110411,2747.1,2744.9,12.89083642]
[1769738046851,0.01110411,2746.9,2745.1,12.89083642]
[1769738047163,0.30356072,2747.6,2745.8,12.65726612]
[1769738047365,0.01110411,2746.7,2745.1,12.65726612]
[1769738047526,0.01110411,2746.9,2745.3,0.91064728]
[1769738047727,0.01110411,2747.8,2745.3,0.91064728]
[1769738047728,0.90985585,2747.7,2745.8,12.65726612]
[1769738047953,0.90988754,2747.6,2745.8,12.65726612]
[1769738048131,0.01110411,2747.3,2745.8,12.65726612]
[1769738048338,0.77510411,2747.4,2745.8,12.65726612]
[1769738048532,0.01110411,2747.2,2745.8,12.65726612]
[1769738048735,0.01110411,2747.6,2746.0,12.65726612]
[1769738048953,0.01110411,2747.3,2746.0,12.65726612]
[1769738049457,0.01110411,2747.3,2745.3,0.91064728]
[1769738049458,0.01110411,2746.7,2745.3,0.91064728]
[1769738049931,0.764,2747.2,2745.3,13.5679134]
[1769738050130,0.91004324,2747.2,2745.3,0.91064728]
[1769738050338,0.01110411,2747.0,2745.3,13.5679134]
[1769738050560,0.763,2746.9,2745.3,13.5679134]
[1769738050867,0.73985961,2747.9,2745.3,13.5679134]
[1769738051051,0.01110411,2747.0,2745.3,0.91064728]
[1769738051373,0.01110411,2746.6,2745.3,0.91064728]
[1769738051666,0.91031569,2746.3,2745.0,3.64295301]
[1769738051869,0.91031569,2746.3,2744.8,16.30038608]
[1769738051870,0.01110411,2746.0,2744.8,0.91081011]
[1769738052034,0.01110411,2746.0,2744.2,3.64391859]
[1769738052035,0.01110411,2745.8,2744.7,0.91082682]
[1769738052232,0.01110411,2745.4,2744.7,0.91082682]
[1769738052460,0.763,2745.5,2744.8,0.91080913]
[1769738052767,0.763,2746.0,2744.8,1.36621531]
[1769738052966,0.01110411,2746.4,2744.8,1.36621531]
[1769738053181,0.01110411,2746.7,2745.2,12.65726612]
[1769738053389,0.01110411,2746.7,2745.3,1.26572661]
[1769738053670,0.763,2746.6,2745.3,13.92299273]
[1769738053872,0.763,2746.6,2745.4,0.91061411]
[1769738054234,0.763,2746.5,2745.4,0.91061411]
[1769738054429,0.01110411,2746.6,2745.3,0.91062962]
[1769738054636,0.01110411,2746.2,2744.5,14.5]
[1769738054974,0.01110411,2746.2,2744.4,0.1024]
[1769738054975,0.01110411,2746.2,2745.3,0.91064637]
[1769738055333,0.01110411,2746.0,2745.3,0.9106459]
[1769738055534,0.763,2745.9,2745.3,0.9106459]
[1769738055783,0.763,2745.9,2745.2,0.002]
[1769738056136,0.01110411,2746.6,2745.2,0.002]
[1769738056339,0.01110411,2746.4,2745.2,0.002]
[1769738056620,0.01110411,2746.4,2745.0,0.002]
[1769738056621,0.01110411,2745.8,2745.0,0.002]
[1769738056736,0.01110411,2745.8,2744.4,3.64374563]
[1769738056935,0.763,2745.7,2744.4,3.64374563]
[1769738057134,0.763,2745.6,2744.4,4.46359316]
[1769738057542,0.763,2745.6,2744.4,0.81984753]
[1769738057744,0.763,2745.6,2744.0,0.25332646]
[1769738057745,0.01110411,2744.9,2744.0,0.25332646]
[1769738057943,0.01110411,2744.9,2742.7,12.65726612]
[1769738057944,0.01110411,2744.5,2742.7,12.65726612]
[1769738058144,0.01110411,2744.5,2742.1,0.01110411]
[1769738058145,0.01110411,2744.2,2742.1,14.5]
[1769738058460,0.01110411,2744.3,2742.6,13.56878065]
[1769738058667,0.763,2744.2,2742.7,13.52919607]
[1769738058973,0.77410411,2744.1,2742.6,0.91151453]
[1769738059177,0.01110411,2744.1,2742.6,0.91151453]
[1769738059379,0.763,2744.0,2742.6,0.91151453]
[1769738059688,0.01110411,2744.7,2742.6,0.91151453]
[1769738059689,0.01110411,2744.6,2742.7,13.98428171]
[1769738059839,0.763,2744.2,2742.8,0.91147732]